bitfinex/quotes_ETHUSD_20250508
["timestamp","ask_amount","ask_price","bid_price","bid_amount"]
[1746743787600,4.59210478,2177.7,2177.4,0.04592016]
[1746743787784,4.59210478,2177.7,2177.4,6.15592016]
[1746743787984,4.59191251,2177.8,2177.4,6.15592016]
[1746743788207,4.5924225,2177.5,2177.4,6.11]
[1746743788508,4.5930553,2177.2,2177.1,3.0]
[1746743789373,4.59279959,2177.4,2177.1,3.0]
[1746743789569,0.08775824,2177.2,2177.1,3.0]
[1746743789793,4.59279959,2177.4,2177.1,3.04592697]
[1746743789974,0.08775824,2177.2,2177.1,11.82869324]
[1746743790177,4.59170204,2177.9,2177.5,0.8245]
[1746743790370,4.59170204,2177.9,2177.6,6.15591652]
[1746743790575,0.09121362,2177.8,2177.6,6.15591652]
[1746743790807,0.09121362,2177.8,2177.6,3.0]
[1746743791008,4.59178987,2177.8,2177.7,1.20727941]
[1746743791215,4.59169376,2177.9,2177.6,3.0]
[1746743791581,4.68310485,2177.8,2177.6,3.0]
[1746743791782,4.68303003,2177.8,2177.5,3.8245]
[1746743792098,0.09121362,2177.8,2177.5,3.8245]
[1746743792298,4.59187501,2177.8,2177.5,3.8245]
[1746743792529,0.09099686,2177.7,2177.6,0.04591592]
[1746743792704,4.59164675,2177.9,2177.6,0.04591592]
[1746743792888,0.09121362,2177.8,2177.5,5.36792296]
[1746743793090,4.59161332,2177.9,2177.5,5.36792296]
[1746743793306,4.6831699,2177.8,2177.5,5.36792296]
[1746743793601,4.6831699,2177.8,2177.6,1.33215388]
[1746743794515,4.59200073,2177.7,2177.5,5.36792296]
[1746743794723,0.09078008,2177.6,2177.5,5.36792296]
[1746743794904,4.59252277,2177.5,2177.2,0.8157]
[1746743795229,4.59284434,2177.3,2176.7,36.4469972]
[1746743795437,4.59314606,2177.2,2176.8,0.8157]
[1746743795584,0.09441639,2177.2,2176.8,3.8157]
[1746743795920,0.09419951,2177.1,2176.8,8.40950508]
[1746743796119,0.09419951,2177.1,2176.9,3.53305023]
[1746743796309,4.59368827,2176.9,2176.8,6.9257]
[1746743796511,4.59242209,2177.6,2177.1,4.5932208]
[1746743796683,4.59242209,2177.6,2177.2,9.9216]
[1746743796884,4.59242209,2177.6,2177.3,6.11]
[1746743796885,4.68757482,2177.5,2177.3,6.11]
[1746743797317,4.59263341,2177.4,2177.3,6.11]
[1746743797585,4.6874835,2177.4,2177.3,6.11]
[1746743797793,0.09485009,2177.4,2177.3,6.11]
[1746743798315,4.59347726,2177.0,2176.9,0.8116]
[1746743798491,0.09261226,2177.0,2176.9,6.9216]
[1746743798694,5.39156517,2177.6,2176.9,8.07316263]
[1746743799016,0.09369656,2177.5,2176.9,0.8116]
[1746743799227,0.09369656,2177.5,2177.0,0.04592841]
[1746743799424,4.59263341,2177.4,2177.0,0.04592841]
[1746743799929,0.0932629,2177.3,2177.0,0.04592841]
[1746743800093,0.0932629,2177.3,2177.0,4.63924195]
[1746743800298,4.59223748,2177.6,2177.2,7.5930553]
[1746743800500,0.09361264,2177.5,2177.3,7.63871465]
[1746743800803,4.59210902,2177.7,2177.4,0.8207]
[1746743801007,4.59210902,2177.7,2177.5,3.0]
[1746743801205,4.5922116,2177.6,2177.5,3.0]
[1746743801600,4.59212472,2177.7,2177.5,3.0]
[1746743801803,4.5922116,2177.6,2177.5,3.0]
[1746743802003,4.59212974,2177.7,2177.5,3.0]
[1746743802617,4.5922116,2177.6,2177.5,3.0]
[1746743804438,0.7881,2177.9,2177.5,10.021]
[1746743804609,4.59200819,2177.7,2177.5,10.021]
[1746743805136,4.5922116,2177.6,2177.5,10.021]
[1746743805340,4.5922116,2177.6,2177.5,9.11]
[1746743806502,4.68742298,2177.6,2177.5,9.11]
[1746743807340,4.59251421,2177.5,2177.2,3.0]
[1746743807540,0.0947778,2177.4,2177.2,3.0]
[1746743807711,4.59253607,2177.5,2177.2,3.0]
[1746743807911,0.0947778,2177.4,2177.2,3.0]
[1746743808211,0.0947778,2177.4,2177.2,4.70634025]
[1746743808433,4.59347726,2177.0,2176.9,6.11]
[1746743808621,4.5938993,2176.8,2176.7,3.06176218]
[1746743808821,0.09260019,2177.0,2176.8,0.8045]
[1746743809107,0.7605,2177.4,2176.9,10.70368827]
[1746743809312,4.59205369,2177.7,2176.9,10.70368827]
[1746743809313,4.59233718,2177.6,2177.1,3.0]
[1746743809639,4.5930553,2177.2,2177.1,9.11]
[1746743809840,4.59304502,2177.3,2177.1,9.11]
[1746743810055,4.5930018,2177.3,2177.1,9.11]
[1746743810539,4.59236581,2177.6,2177.1,13.70326487]
[1746743810743,4.59248472,2177.5,2177.1,9.11]
[1746743810941,0.7605,2177.7,2177.1,9.11]
[1746743810942,5.35250984,2177.7,2177.1,9.11]
[1746743811146,4.59293718,2177.3,2177.1,9.11]
[1746743811441,6.73792022,2177.7,2177.1,9.11]
[1746743811442,0.55,2177.6,2177.1,9.11]
[1746743811612,4.5930553,2177.2,2177.1,6.11]
[1746743812417,4.5930553,2177.2,2177.1,9.11]
[1746743812622,4.59215926,2177.7,2177.2,3.0]
[1746743812921,5.35799701,2177.8,2177.3,4.59269863]
[1746743813247,5.35799701,2177.8,2177.4,4.5926291]
[1746743813627,4.59256181,2177.5,2177.3,6.11]
[1746743813834,4.59263341,2177.4,2177.3,6.11]
[1746743814932,0.7661,2177.8,2177.3,6.11]
[1746743815129,4.59235963,2177.6,2177.3,6.11]
[1746743815345,4.59235963,2177.6,2177.3,7.25834196]
[1746743815544,4.59145445,2178.0,2177.5,4.5923159]
[1746743815853,4.59145445,2178.0,2177.4,7.47642097]
[1746743815854,4.59194609,2177.8,2177.4,7.4304972]
[1746743816253,4.59146074,2178.0,2177.4,12.02313009]
[1746743816456,4.5913484,2178.1,2177.5,1.77641465]
[1746743816658,4.59168857,2177.9,2177.7,3.0]
[1746743817011,5.39175122,2178.2,2177.7,3.0]
[1746743817215,4.59178987,2177.8,2177.7,3.0]
[1746743818218,4.59200073,2177.7,2177.6,6.11]
[1746743818853,4.59190207,2177.8,2177.6,6.11]
[1746743819056,4.59200073,2177.7,2177.6,6.11]
[1746743819418,4.59187516,2177.8,2177.6,6.11]
[1746743819714,4.59161347,2177.9,2177.7,3.0]
[1746743820473,4.59200073,2177.7,2177.6,6.11]
[1746743820614,4.59245475,2177.5,2177.3,3.0]
[1746743820810,4.59284434,2177.3,2177.2,6.11]
[1746743821041,4.59284434,2177.3,2177.0,3.06176218]
[1746743821042,4.5931406,2177.2,2177.0,3.06176218]
[1746743821358,0.8177,2177.7,2177.0,3.06176218]
[1746743821525,4.59210436,2177.7,2177.3,0.7718]
[1746743821847,0.7886,2177.9,2177.4,0.04592268]
[1746743822017,4.5923262,2177.6,2177.3,9.8818]
[1746743822217,4.59187041,2177.8,2177.3,9.8818]
[1746743822431,4.59187041,2177.8,2177.3,14.47449872]
[1746743822649,4.59202254,2177.7,2177.3,14.47449872]
[1746743822845,4.59202254,2177.7,2177.3,16.74698867]
[1746743823052,4.59210037,2177.7,2177.3,12.15416666]
[1746743823253,0.7886,2178.1,2177.3,12.15416666]
[1746743823466,4.5924225,2177.5,2177.4,6.11]
[1746743823756,4.59326627,2177.1,2177.0,6.11]
[1746743824140,4.5931551,2177.2,2177.0,6.11]
[1746743824361,4.59368827,2176.9,2176.8,3.06176218]
[1746743824561,0.55,2177.4,2176.9,4.59354354]
[1746743824562,0.7592,2177.4,2176.9,4.59354354]
[1746743824878,4.59342723,2177.1,2176.9,6.11]
[1746743825063,4.59347726,2177.0,2176.9,6.11]
[1746743825764,5.35192505,2177.4,2176.9,6.11]
[1746743826081,4.59308856,2177.2,2176.9,6.11]
[1746743826775,4.59331303,2177.1,2176.9,6.11]
[1746743826941,5.14284434,2177.3,2176.9,6.11]
[1746743827136,4.59334988,2177.1,2176.9,6.11]
[1746743827341,4.59253833,2177.5,2177.0,7.59337522]
[1746743827586,4.59253833,2177.5,2177.0,7.63930445]
[1746743827878,4.59253833,2177.5,2177.0,7.59337522]
[1746743828062,4.59276542,2177.4,2177.0,3.0]
[1746743828266,4.59295533,2177.3,2177.0,3.0]
[1746743828463,0.7592,2177.7,2177.0,4.17088913]
[1746743828664,4.59181513,2177.8,2177.2,3.0]
[1746743828851,4.59162429,2177.9,2177.2,6.6559972]
[1746743828852,4.59175377,2177.9,2177.2,6.6559972]
[1746743829060,5.392115,2178.0,2177.6,7.5921227]
[1746743829379,4.591515,2178.0,2177.6,7.5921227]
[1746743829580,4.591515,2178.0,2177.6,3.0]
[1746743829874,4.59127058,2178.1,2177.6,7.59216649]
[1746743830046,4.59101777,2178.2,2177.7,3.0]
[1746743830242,5.36512065,2178.3,2177.9,3.0]
[1746743830443,4.59082065,2178.3,2177.9,3.0]
[1746743830783,4.59082065,2178.3,2177.8,7.63759616]
[1746743830952,4.59065078,2178.4,2177.9,4.59156904]
[1746743831142,4.59065078,2178.4,2178.0,4.59130735]
[1746743831343,4.59065078,2178.4,2178.0,3.0]
[1746743831780,4.59065078,2178.4,2177.9,9.62677852]
[1746743831966,5.35550568,2178.5,2177.9,5.03531652]
[1746743832161,4.5906215,2178.4,2177.9,5.03531652]
[1746743832366,0.7651,2178.5,2177.9,5.03531652]
[1746743832569,4.59082173,2178.3,2177.9,5.03531652]
[1746743832785,4.59082173,2178.3,2177.9,9.62689062]
[1746743832969,4.59082173,2178.3,2177.9,5.03531652]
[1746743833485,4.59088983,2178.3,2177.9,9.62688719]
[1746743833693,3.354,2178.6,2178.0,8.43354614]
[1746743833850,4.59022342,2178.6,2178.1,7.59101007]
[1746743834050,0.7753,2178.8,2178.0,0.79636736]
[1746743834400,4.59094665,2178.2,2178.1,3.0]
[1746743834549,4.59172756,2177.9,2177.7,6.8967]
[1746743834751,4.59172756,2177.9,2177.8,6.11]
[1746743837191,0.7764,2178.3,2177.8,6.11]
[1746743837400,0.7815,2178.6,2177.8,5.0990972]
[1746743837549,4.59020241,2178.6,2178.2,7.59092302]
[1746743837747,4.58995239,2178.7,2178.2,8.42302302]
[1746743838149,4.58994294,2178.7,2178.4,3.0]
[1746743838444,0.8109,2179.2,2178.4,13.912861]
[1746743838644,5.39912921,2179.5,2178.8,3.0]
[1746743838872,3.354,2179.6,2179.1,4.58896682]
[1746743839154,3.354,2179.6,2179.2,0.8123]
[1746743839155,7.94210379,2179.6,2179.2,0.8123]
[1746743839375,4.58841883,2179.4,2179.0,6.11]
[1746743839577,4.58905052,2179.1,2179.0,6.11]
[1746743839778,4.58889178,2179.2,2178.8,3.0]
[1746743839779,4.58890069,2179.2,2178.8,3.0]
[1746743839989,7.94200702,2179.6,2178.8,3.0]
[1746743840149,4.58893697,2179.2,2178.8,9.11]
[1746743840350,3.354,2179.6,2178.8,9.11]
[1746743840575,0.6706,2179.5,2178.8,9.11]
[1746743840754,4.58863703,2179.3,2178.8,13.69954279]
[1746743840955,4.58885589,2179.2,2178.8,13.69954279]
[1746743841188,4.58885589,2179.2,2178.8,9.11]
[1746743842088,4.58873031,2179.3,2178.8,13.69964268]
[1746743842391,4.58887208,2179.2,2178.8,16.26319919]
[1746743842794,4.58887208,2179.2,2178.8,11.67355833]
[1746743843293,4.5881132,2179.6,2179.1,4.58890812]
[1746743843455,4.58808923,2179.6,2179.2,3.0]
[1746743843656,5.34437592,2180.1,2179.4,3.8223]
[1746743843950,4.58780313,2179.7,2179.4,9.9323]
[1746743844150,4.6786096,2179.6,2179.4,11.0791638]
[1746743844354,4.6786096,2179.6,2179.5,6.11]
[1746743847264,0.09048334,2179.6,2179.5,6.11]
[1746743847592,5.34436109,2180.1,2179.7,4.5876987]
[1746743847593,4.58697565,2180.1,2179.7,4.5876987]
[1746743847767,4.58772701,2179.8,2179.6,3.7696]
[1746743847967,4.58772701,2179.8,2179.6,0.7696]
[1746743848162,4.58747355,2179.9,2179.6,2.30630088]
[1746743848560,5.41002781,2180.5,2180.0,4.58706767]
[1746743848787,5.40945523,2180.8,2179.9,3.0]
[1746743848996,4.58763058,2179.8,2179.6,0.7696]
[1746743849762,4.58809181,2179.6,2179.3,0.7696]
[1746743850005,4.58718513,2180.0,2179.1,0.72916696]
[1746743850006,4.58841883,2179.4,2179.1,0.72916696]
[1746743850162,4.5891437,2179.1,2178.8,3.352]
[1746743850496,4.5891437,2179.1,2178.9,3.0]
[1746743850675,4.5891437,2179.1,2178.8,3.352]
[1746743851085,4.58901646,2179.2,2178.8,3.352]
[1746743851282,4.58907089,2179.1,2178.8,4.52108443]
[1746743851482,5.13855321,2179.4,2178.8,3.352]
[1746743851686,4.5882083,2179.5,2178.8,3.352]
[1746743851865,4.58872672,2179.3,2178.8,7.94165205]
[1746743852068,4.58872672,2179.3,2178.9,3.0]
[1746743852370,0.8238,2179.6,2178.9,4.17113083]
[1746743852709,4.58837856,2179.5,2179.1,3.0]
[1746743853005,4.58842758,2179.4,2179.1,3.0]
[1746743853486,4.58809875,2179.6,2179.1,3.0]
[1746743853795,4.58836015,2179.5,2179.1,3.0]
[1746743853964,4.58883994,2179.2,2179.1,3.0]
[1746743854163,4.58883994,2179.2,2179.1,9.11]
[1746743854371,4.58874368,2179.3,2179.1,9.11]
[1746743854707,4.58883994,2179.2,2179.1,9.11]
[1746743855069,4.58757684,2179.8,2179.1,9.11]
[1746743855266,4.58860693,2179.4,2179.2,6.11]
[1746743855523,4.58862937,2179.3,2179.2,6.11]
[1746743855705,5.13905052,2179.1,2179.0,3.06176218]
[1746743855878,5.93225052,2179.1,2179.0,3.06176218]
[1746743856081,5.93225052,2179.1,2178.4,0.34401868]
[1746743856082,1.51097783,2179.1,2178.4,0.34401868]
[1746743856305,4.58915959,2179.1,2178.6,7.58997984]
[1746743856673,4.58850862,2179.4,2179.0,0.7639]
[1746743856896,5.41253713,2179.6,2179.0,3.7639]
[1746743857073,4.58905052,2179.1,2179.0,3.0]
[1746743857274,4.58926112,2179.0,2178.9,6.11]
[1746743857509,4.58926112,2179.0,2178.9,9.11]
[1746743857809,4.58926112,2179.0,2178.9,6.11]
[1746743858508,4.59010373,2178.6,2178.5,6.11]
[1746743858692,4.58995297,2178.7,2178.4,6.11]
[1746743858693,4.59000238,2178.7,2178.4,6.11]
[1746743858885,4.5898115,2178.8,2178.4,6.11]
[1746743859085,4.59006048,2178.7,2178.4,6.11]
[1746743859399,4.58992081,2178.7,2178.4,6.11]
[1746743859580,4.58979752,2178.8,2178.5,1.14621923]
[1746743859781,4.58923659,2179.1,2178.5,1.14621923]
[1746743860103,7.4914,2179.2,2178.6,3.0]
[1746743860104,4.58948409,2178.9,2178.6,3.0]
[1746743860275,4.58981949,2178.8,2178.6,3.0]
[1746743860617,4.58936684,2179.0,2178.6,4.02562192]
[1746743860914,4.5891741,2179.1,2178.7,0.83509403]
[1746743861811,5.90509435,2179.5,2178.7,0.83509403]
[1746743861812,4.58968239,2178.8,2178.7,0.7892]
[1746743861994,4.59010373,2178.6,2178.5,6.11]
[1746743862198,4.59031443,2178.5,2178.4,6.8992]
[1746743862403,4.58998568,2178.7,2178.4,6.8992]
[1746743862606,4.59019911,2178.6,2178.4,8.29101405]
[1746743862810,4.59031443,2178.5,2178.4,7.50181405]
[1746743863125,4.5901232,2178.6,2178.4,9.11]
[1746743863419,4.5895208,2178.9,2178.5,3.0]
[1746743863593,4.58979983,2178.8,2178.5,3.0]
[1746743863917,4.58979983,2178.8,2178.5,4.70476237]
[1746743864475,4.59031443,2178.5,2178.4,6.11]
[1746743864709,4.59031443,2178.5,2178.4,9.11]
[1746743865716,4.59031443,2178.5,2178.2,10.57114053]
[1746743865884,4.59115743,2178.1,2178.0,6.11]
[1746743866079,4.59200073,2177.7,2177.6,9.17176218]
[1746743866704,4.59200073,2177.7,2177.6,3.06176218]
[1746743867207,4.59052515,2178.4,2177.7,3.7915]
[1746743867388,4.591738,2177.9,2177.7,4.46344053]
[1746743867707,1.3129,2178.6,2177.6,3.06176218]
[1746743867708,0.7629,2178.1,2177.6,3.06176218]
[1746743868013,7.94329924,2178.6,2177.7,0.04591868]
[1746743868014,4.59106644,2178.2,2177.7,0.04591868]
[1746743868213,4.5912767,2178.1,2177.7,3.04591868]
[1746743868404,4.5912767,2178.1,2177.8,0.7915]
[1746743868578,4.59105968,2178.2,2177.8,0.7915]
[1746743868780,4.59062812,2178.4,2177.9,3.04591341]
[1746743869012,4.59062757,2178.4,2178.0,1.45390988]
[1746743869416,4.59074569,2178.3,2178.0,1.45390988]
[1746743869778,4.59061456,2178.4,2178.0,1.45390988]
[1746743870278,4.59073673,2178.3,2178.0,1.45390988]
[1746743870480,4.59082349,2178.3,2178.0,1.45390988]
[1746743870693,4.59082349,2178.3,2178.1,0.44539099]
[1746743871194,4.59094665,2178.2,2178.1,0.44539099]
[1746743871394,4.59084523,2178.3,2178.1,0.44539099]
[1746743871595,4.59094665,2178.2,2178.1,0.44539099]
[1746743872004,4.59136822,2178.0,2177.9,3.0]
[1746743872192,0.7966,2178.3,2177.8,6.9015]
[1746743872515,4.59129246,2178.1,2177.8,6.9015]
[1746743872717,4.59148465,2178.0,2177.8,6.9015]
[1746743873078,4.59122926,2178.1,2177.8,6.9015]
[1746743873279,4.59131147,2178.1,2177.9,6.11]
[1746743873503,4.59136822,2178.0,2177.9,6.11]
[1746743874277,4.59127558,2178.1,2177.9,6.11]
[1746743874486,4.59103791,2178.2,2177.9,6.11]
[1746743874687,4.59115786,2178.1,2177.9,6.11]
[1746743875013,0.45911579,2178.1,2177.6,9.11]
[1746743875224,4.59178518,2177.9,2177.6,9.11]
[1746743875394,4.59135848,2178.1,2177.6,9.15591877]
[1746743875598,4.59148459,2178.0,2177.6,9.15591877]
[1746743875786,0.7966,2178.5,2177.6,9.15591877]
[1746743875985,4.59128357,2178.1,2177.6,13.70217295]
[1746743876209,4.59128357,2178.1,2177.7,2.24435093]
[1746743876594,4.59081457,2178.3,2177.9,0.803]
[1746743876826,4.5910482,2178.2,2177.9,0.803]
[1746743877011,4.59117757,2178.1,2177.9,0.803]
[1746743877922,4.59136822,2178.0,2177.9,0.803]
[1746743878123,4.59102984,2178.2,2177.9,0.803]
[1746743878309,4.59102448,2178.2,2177.9,0.803]
[1746743878513,4.59102448,2178.2,2177.4,3.348]
[1746743878514,4.59326627,2177.1,2177.0,3.28338157]
[1746743878717,4.59326627,2177.1,2177.0,3.06176218]
[1746743880111,4.59326627,2177.1,2176.9,0.803]
[1746743880312,4.59347726,2177.0,2176.9,0.803]
[1746743880515,4.59233361,2177.6,2176.9,0.803]
[1746743880736,4.59201711,2177.7,2177.1,3.0]
[1746743880923,4.59224824,2177.6,2177.2,1.4534994]
[1746743881521,4.59146026,2178.0,2177.4,3.0]
[1746743881733,4.59124963,2178.1,2177.6,4.59220829]
[1746743881907,4.59124963,2178.1,2177.5,0.82871507]
[1746743881908,4.59124963,2178.1,2177.5,5.37511859]
[1746743882107,4.59046715,2178.5,2177.8,8.38290154]
[1746743882313,5.35985757,2178.6,2178.0,3.0]
[1746743882533,4.59044407,2178.5,2178.1,0.83710583]
[1746743882710,4.59015757,2178.6,2178.1,0.7912]
[1746743882711,4.59052561,2178.4,2178.1,0.7912]
[1746743883146,4.59042542,2178.5,2178.1,0.7912]
[1746743883348,4.59042542,2178.5,2178.1,1.99557603]
[1746743883555,0.781,2179.2,2178.3,3.0]
[1746743883737,0.93764505,2179.7,2178.6,3.0]
[1746743883926,4.58942065,2179.0,2178.8,0.8197]
[1746743884111,4.58947175,2178.9,2178.8,3.8197]
[1746743885255,4.58947175,2178.9,2178.8,0.8197]
[1746743885561,0.797,2179.7,2178.9,4.58929651]
[1746743885860,4.58831165,2179.5,2179.1,3.0]
[1746743886216,4.58757684,2179.8,2179.1,3.0]
[1746743886416,4.58926112,2179.0,2178.9,0.22319941]
[1746743886817,6.87219707,2179.0,2178.9,0.22319941]
[1746743887232,4.59094665,2178.2,2178.1,3.06984992]
[1746743887750,4.59094665,2178.2,2178.1,6.06984992]
[1746743888114,4.59083086,2178.3,2178.1,3.06984992]
[1746743888319,4.59094665,2178.2,2178.1,3.06984992]
[1746743888953,4.59081842,2178.3,2178.1,3.06984992]
[1746743889125,4.59032705,2178.5,2178.1,6.75764206]
[1746743889329,4.59032705,2178.5,2178.2,3.0]
[1746743889532,4.59018038,2178.6,2178.2,0.7909]
[1746743889730,4.58998153,2178.7,2178.3,3.90698391]
[1746743889932,4.5897492,2178.8,2178.3,8.49764112]
[1746743890118,4.5897492,2178.8,2178.3,3.90698391]
[1746743890119,4.58992313,2178.7,2178.3,3.90698391]
[1746743890854,4.5897492,2178.8,2178.3,8.49770317]
[1746743891047,4.58989897,2178.7,2178.3,3.90698391]
[1746743891354,4.58978407,2178.8,2178.5,3.0]
[1746743891564,4.58998443,2178.7,2178.5,3.0]
[1746743892421,4.59010373,2178.6,2178.5,3.0]
[1746743892616,4.58998881,2178.7,2178.5,3.0]
[1746743892818,4.58937914,2179.0,2178.5,13.74620238]
[1746743893151,4.58978161,2178.8,2178.6,1.50095686]
[1746743893456,0.7621,2179.3,2178.5,6.11]
[1746743893457,4.59010373,2178.6,2178.5,6.11]
[1746743893663,4.59022586,2178.6,2178.3,6.11]
[1746743893843,4.59033889,2178.5,2178.0,4.59122677]
[1746743894047,4.59053595,2178.4,2178.1,1.03120134]
[1746743894537,4.59053595,2178.4,2178.1,4.03120134]
[1746743894737,4.5904423,2178.5,2178.1,4.03120134]
[1746743895137,0.7874,2178.7,2178.1,8.62233994]
[1746743895339,4.59023886,2178.6,2178.1,8.62233994]
[1746743895659,4.59039751,2178.5,2178.2,0.86223399]
[1746743896244,4.58996956,2178.7,2178.3,3.0]
[1746743896570,4.58957335,2178.9,2178.5,3.0]
[1746743896875,4.58973013,2178.8,2178.5,3.0]
[1746743897049,4.58973013,2178.8,2178.4,3.7775]
[1746743897249,4.58973013,2178.8,2178.5,7.6204062]
[1746743897635,4.5895914,2178.9,2178.6,3.0]
[1746743898180,4.58938081,2179.0,2178.6,3.0]
[1746743898378,4.58911218,2179.1,2178.6,3.04589668]
[1746743898575,4.58918782,2179.1,2178.8,3.0]
[1746743899444,4.58934074,2179.0,2178.8,3.0]
[1746743899776,4.58947175,2178.9,2178.8,3.0]
[1746743900757,4.58980538,2178.8,2178.5,11.1994062]
[1746743900952,0.7874,2179.3,2178.6,1.03574756]
[1746743901141,4.58926749,2179.0,2178.6,1.03574756]
[1746743901981,4.58955306,2178.9,2178.6,1.03574756]
[1746743902179,4.58954644,2178.9,2178.5,3.0]
[1746743902347,4.58924873,2179.1,2178.5,14.2791793]
[1746743902547,4.58937532,2179.0,2178.5,14.2791793]
[1746743903078,4.58891851,2179.2,2178.6,7.59004482]
[1746743903079,4.58911755,2179.1,2178.6,7.59004482]
[1746743903283,4.58911755,2179.1,2178.7,5.18692241]
[1746743903653,4.58918127,2179.1,2178.7,2.18692241]
[1746743903984,4.58883994,2179.2,2178.7,2.18692241]
[1746743904196,4.589333,2179.0,2178.7,2.18692241]
[1746743904392,4.58883994,2179.2,2178.7,2.18692241]
[1746743904751,4.58883994,2179.2,2178.8,0.97768445]
[1746743904953,4.58892084,2179.2,2178.8,0.97768445]
[1746743905154,4.5882236,2179.5,2178.9,9.8873]
[1746743905155,4.58846351,2179.4,2178.9,9.8873]
[1746743905485,4.58872243,2179.3,2178.9,9.8873]
[1746743906200,4.58867522,2179.3,2178.9,9.8873]
[1746743906382,4.58867522,2179.3,2178.9,11.43276621]
[1746743907023,0.7504,2179.6,2178.9,11.43276621]
[1746743907024,4.58900083,2179.2,2178.9,11.43276621]
[1746743907221,5.33846672,2179.6,2178.9,11.43276621]
[1746743907432,5.33846672,2179.6,2179.0,6.11]
[1746743907719,4.58886532,2179.2,2179.0,6.11]
[1746743908311,4.58899087,2179.2,2179.0,6.11]
[1746743909926,4.58899087,2179.2,2179.0,6.45795411]
[1746743910729,4.58905052,2179.1,2179.0,9.11]
[1746743910940,5.35130987,2179.1,2178.5,4.171]
[1746743911113,4.58938429,2179.0,2178.5,10.32689804]
[1746743911293,4.58949676,2178.9,2178.5,12.78132111]
[1746743911493,4.58982523,2178.8,2178.6,3.0]
[1746743911836,4.58989305,2178.7,2178.6,3.0]
[1746743911997,4.58989305,2178.7,2178.4,3.06984992]
[1746743911998,4.59010373,2178.6,2178.4,3.06984992]
[1746743912319,4.59031443,2178.5,2178.4,3.06984992]
[1746743912826,4.59031443,2178.5,2178.4,6.06984992]
[1746743913032,4.59031443,2178.5,2178.4,3.06984992]
[1746743913420,4.59028555,2178.6,2178.4,3.06984992]
[1746743913621,4.59016056,2178.6,2178.4,3.06984992]
[1746743913932,4.58991777,2178.7,2178.4,3.87854992]
[1746743914128,4.59026744,2178.6,2178.4,3.87854992]
[1746743914301,4.59031443,2178.5,2178.4,3.06984992]
[1746743914692,5.91051443,2178.5,2178.4,3.06984992]
[1746743915130,12.59751443,2178.5,2178.4,3.06984992]
[1746743915350,12.59751443,2178.5,2177.8,3.96752678]
[1746743915351,5.36051443,2178.5,2177.8,3.0]
[1746743915498,5.13964781,2178.9,2178.4,3.0]
[1746743915838,5.3965051,2179.0,2178.4,4.59050076]
[1746743915998,4.58966615,2178.9,2178.4,3.0]
[1746743916398,4.58958678,2178.9,2178.4,3.0]
[1746743916639,4.58958678,2178.9,2178.5,0.83409309]
[1746743916943,4.58971115,2178.8,2178.5,0.83409309]
[1746743917109,4.58958804,2178.9,2178.5,0.83409309]
[1746743917437,4.58968361,2178.8,2178.5,0.83409309]
[1746743917798,4.58876732,2179.3,2178.8,0.7681]
[1746743918002,4.58876732,2179.3,2178.8,1.60851005]
[1746743918443,4.58885634,2179.2,2178.8,1.60851005]
[1746743918641,4.58873148,2179.3,2178.8,6.19818918]
[1746743919042,4.58854227,2179.4,2178.8,6.19818918]
[1746743920063,4.58868682,2179.3,2178.8,6.19818918]
[1746743920242,4.58868682,2179.3,2178.8,1.60851005]
[1746743920444,4.58868682,2179.3,2178.9,1.28559268]
[1746743921164,4.58874325,2179.3,2179.0,3.0]
[1746743921571,4.58843729,2179.4,2179.0,3.39166226]
[1746743921727,4.58863371,2179.3,2179.0,3.34577447]
[1746743922147,4.58846306,2179.4,2179.0,3.34577447]
[1746743922355,4.58875161,2179.3,2179.0,3.34577447]
[1746743922560,4.58890839,2179.2,2179.0,3.34577447]
[1746743923065,4.58874684,2179.3,2179.0,3.34577447]
[1746743924063,4.58884105,2179.2,2179.0,3.34577447]
[1746743924263,4.58884105,2179.2,2179.0,9.45577447]
[1746743924469,4.58874414,2179.3,2179.0,9.45577447]
[1746743925671,0.7905,2179.7,2179.0,10.93526774]
[1746743925880,0.8172,2180.2,2179.3,5.35237104]
[1746743926183,4.58746959,2179.9,2179.4,14.08614283]
[1746743926482,7.92685381,2180.7,2179.4,14.08614283]
[1746743926483,5.4031535,2180.6,2179.9,7.58722829]
[1746743926779,4.5862057,2180.5,2180.2,0.7638]
[1746743926983,4.5859535,2180.6,2180.2,0.7638]
[1746743926984,4.58598611,2180.6,2180.2,0.7638]
[1746743927180,4.5862613,2180.5,2180.2,0.7638]
[1746743927486,4.58549122,2180.8,2180.2,0.7638]
[1746743927685,4.58629727,2180.5,2180.2,0.7638]
[1746743927845,4.58644099,2180.4,2180.2,0.7638]
[1746743929496,4.58652479,2180.3,2180.2,0.7638]
[1746743929895,4.58652479,2180.3,2180.1,3.0]
[1746743930388,4.58694555,2180.1,2180.0,6.11]
[1746743930572,4.58736639,2179.9,2179.8,6.11]
[1746743930987,4.58734082,2180.0,2179.8,6.11]
[1746743931163,4.58736639,2179.9,2179.8,6.11]
[1746743931705,4.58723454,2180.0,2179.8,6.11]
[1746743931910,5.96303929,2180.1,2179.8,6.11]
[1746743931911,4.58698887,2180.1,2179.8,6.11]
[1746743932377,4.58725687,2180.0,2179.8,6.11]
[1746743932783,4.58705943,2180.1,2179.8,6.11]
[1746743933413,0.7785,2180.4,2179.8,6.11]
[1746743933577,4.58724114,2180.0,2179.8,6.11]
[1746743933903,5.36483845,2180.4,2179.8,6.11]
[1746743933904,4.58701543,2180.1,2179.8,6.11]
[1746743934265,0.59148384,2180.3,2179.8,6.11]
[1746743934506,4.58736639,2179.9,2179.8,9.11]
[1746743935109,4.5865504,2180.3,2179.8,9.11]
[1746743935405,0.7785,2180.4,2179.9,3.0]
[1746743935573,4.58715596,2180.0,2179.9,3.0]
[1746743936286,4.58715596,2180.0,2179.9,9.11]
[1746743936628,4.58697181,2180.1,2179.9,9.11]
[1746743936828,4.58715596,2180.0,2179.9,9.11]
[1746743937330,4.58704264,2180.1,2179.9,9.11]
[1746743938615,4.58641734,2180.4,2180.0,5.36345024]
[1746743939218,4.58622079,2180.5,2180.2,3.0]
[1746743939519,0.7797,2180.8,2180.2,13.69664028]
[1746743939686,4.58598412,2180.6,2180.3,6.11]
[1746743940487,4.58631443,2180.4,2180.3,6.11]